[Event "Titled Tuesday Blitz April 19 Late 2022"]
[White "Svane, Rasmus"]
[Black "Rytenko, Vsevolod"]
[WhiteFideId "4657101"]
[BlackFideId "14133040"]
[WhiteElo "2645"]
[BlackElo "2120"]
[Result "0-1"]
[Round "08"]
[TimeControl "180+1"]
[Date "2022.04.19"]
[WhiteClock "0:00:01"]
[BlackClock "0:00:08"]

1. Nf3 {[%clk 0:02:55]}  Nf6 {[%clk 0:02:59]} 2. g3 {[%clk 0:02:55]}  c6 {[%clk 0:03:00]} 3. Bg2 {[%clk 0:02:55]}  d5 {[%clk 0:03:01]} 4. O-O {[%clk 0:02:54]}  Bg4 {[%clk 0:03:02]} 5. h3 {[%clk 0:02:54]}  Bxf3 {[%clk 0:03:02]} 6. Bxf3 {[%clk 0:02:55]}  Nbd7 {[%clk 0:03:02]} 7. d3 {[%clk 0:02:56]}  e6 {[%clk 0:03:03]} 8. e4 {[%clk 0:02:56]}  Bd6 {[%clk 0:02:59]} 9. Nd2 {[%clk 0:02:56]}  O-O {[%clk 0:02:58]} 10. d4 {[%clk 0:02:55]}  dxe4 {[%clk 0:02:58]} 11. Nxe4 {[%clk 0:02:56]}  Nxe4 {[%clk 0:02:58]} 12. Bxe4 {[%clk 0:02:57]}  Nf6 {[%clk 0:02:58]} 13. Bf3 {[%clk 0:02:56]}  Qb6 {[%clk 0:02:59]} 14. c3 {[%clk 0:02:56]}  Rad8 {[%clk 0:02:58]} 15. Qb3 {[%clk 0:02:55]}  e5 {[%clk 0:02:54]} 16. dxe5 {[%clk 0:02:55]}  Bxe5 {[%clk 0:02:54]} 17. Be3 {[%clk 0:02:56]}  Qc7 {[%clk 0:02:47]} 18. Kg2 {[%clk 0:02:51]}  Nd5 {[%clk 0:02:38]} 19. Bxa7 {[%clk 0:02:42]}  b5 {[%clk 0:01:41]} 20. Bc5 {[%clk 0:02:40]}  Rfe8 {[%clk 0:01:39]} 21. Rad1 {[%clk 0:02:40]}  Bd6 {[%clk 0:01:21]} 22. Bxd6 {[%clk 0:02:31]}  Rxd6 {[%clk 0:01:14]} 23. Bxd5 {[%clk 0:02:30]}  cxd5 {[%clk 0:01:14]} 24. Rxd5 {[%clk 0:02:03]}  Qc6 {[%clk 0:00:58]} 25. Qxb5 {[%clk 0:02:02]}  Qxd5+ {[%clk 0:00:57]} 26. Qxd5 {[%clk 0:01:55]}  Rxd5 {[%clk 0:00:58]} 27. a4 {[%clk 0:01:54]}  Rd2 {[%clk 0:00:55]} 28. b4 {[%clk 0:01:53]}  Rc2 {[%clk 0:00:45]} 29. b5 {[%clk 0:01:34]}  Rxc3 {[%clk 0:00:43]} 30. b6 {[%clk 0:01:26]}  Rb3 {[%clk 0:00:25]} 31. a5 {[%clk 0:01:24]}  g6 {[%clk 0:00:21]} 32. Rc1 {[%clk 0:01:06]}  Ra8 {[%clk 0:00:19]} 33. Rc5 {[%clk 0:01:03]}  Kf8 {[%clk 0:00:18]} 34. Re5 {[%clk 0:00:56]}  f6 {[%clk 0:00:16]} 35. Rc5 {[%clk 0:00:54]}  Ke7 {[%clk 0:00:17]} 36. Rc7+ {[%clk 0:00:53]}  Kd6 {[%clk 0:00:17]} 37. Ra7 {[%clk 0:00:51]}  Rb8 {[%clk 0:00:12]} 38. Rxh7 {[%clk 0:00:50]}  Ra3 {[%clk 0:00:12]} 39. Ra7 {[%clk 0:00:49]}  Kc6 {[%clk 0:00:12]} 40. Rf7 {[%clk 0:00:37]}  Rxa5 {[%clk 0:00:09]} 41. Rxf6+ {[%clk 0:00:38]}  Kc5 {[%clk 0:00:07]} 42. Rxg6 {[%clk 0:00:38]}  Rxb6 {[%clk 0:00:08]} 43. Rg5+ {[%clk 0:00:36]}  Kb4 {[%clk 0:00:08]} 44. Rg4+ {[%clk 0:00:33]}  Kc3 {[%clk 0:00:08]} 45. Rf4 {[%clk 0:00:32]}  Kd3 {[%clk 0:00:08]} 46. h4 {[%clk 0:00:31]}  Rd5 {[%clk 0:00:07]} 47. g4 {[%clk 0:00:29]}  Rd4 {[%clk 0:00:08]} 48. Rf3+ {[%clk 0:00:29]}  Ke4 {[%clk 0:00:08]} 49. h5 {[%clk 0:00:26]}  Rh6 {[%clk 0:00:06]} 50. Rf5 {[%clk 0:00:25]}  Rd1 {[%clk 0:00:06]} 51. f3+ {[%clk 0:00:22]}  Ke3 {[%clk 0:00:06]} 52. Re5+ {[%clk 0:00:23]}  Kf4 {[%clk 0:00:05]} 53. Rf5+ {[%clk 0:00:23]}  Ke3 {[%clk 0:00:06]} 54. Kg3 {[%clk 0:00:23]}  Rg1+ {[%clk 0:00:06]} 55. Kh4 {[%clk 0:00:24]}  Rh1+ {[%clk 0:00:06]} 56. Kg5 {[%clk 0:00:24]}  Rh8 {[%clk 0:00:06]} 57. Rf6 {[%clk 0:00:18]}  Rd1 {[%clk 0:00:06]} 58. f4 {[%clk 0:00:17]}  Rg1 {[%clk 0:00:05]} 59. f5 {[%clk 0:00:17]}  Kf3 {[%clk 0:00:06]} 60. h6 {[%clk 0:00:04]}  Rxg4+ {[%clk 0:00:06]} 61. Kh5 {[%clk 0:00:04]}  Rg1 {[%clk 0:00:06]} 62. Rg6 {[%clk 0:00:03]}  Rh1+ {[%clk 0:00:06]} 63. Kg5 {[%clk 0:00:03]}  Rg1+ {[%clk 0:00:04]} 64. Kf6 {[%clk 0:00:03]}  Rd1 {[%clk 0:00:04]} 65. Kg7 {[%clk 0:00:03]}  Rdd8 {[%clk 0:00:05]} 66. f6 {[%clk 0:00:01]}  Rdg8+ {[%clk 0:00:05]} 67. Kf7 {[%clk 0:00:02]}  Rf8+ {[%clk 0:00:06]} 68. Kg7 {[%clk 0:00:02]}  Kf4 {[%clk 0:00:06]} 69. f7 {[%clk 0:00:02]}  Kf5 {[%clk 0:00:07]} 70. Rf6+ {[%clk 0:00:01]}  Kg5 {[%clk 0:00:07]} 71. Rg6+ {[%clk 0:00:02]}  Kh5 {[%clk 0:00:08]} 72. Rb6 {[%clk 0:00:02]}  Rd8 {[%clk 0:00:08]} 73. Rb5+ {[%clk 0:00:02]}  Kg4 {[%clk 0:00:08]} 74. h7 {[%clk 0:00:03]}  Rdf8 {[%clk 0:00:07]} 75. Re5 {[%clk 0:00:02]}  Kf4 {[%clk 0:00:07]} 76. Rb5 {[%clk 0:00:02]}  Ke4 {[%clk 0:00:07]} 77. Rb1 {[%clk 0:00:02]}  Kf4 {[%clk 0:00:08]} 78. Rf1+ {[%clk 0:00:02]}  Ke5 {[%clk 0:00:08]} 79. Re1+ {[%clk 0:00:03]}  Kd6 {[%clk 0:00:09]} 80. Re2 {[%clk 0:00:03]}  Kd5 {[%clk 0:00:09]} 81. Re3 {[%clk 0:00:03]}  Kd6 {[%clk 0:00:09]} 82. Re4 {[%clk 0:00:02]}  Kd7 {[%clk 0:00:10]} 83. Rh4 {[%clk 0:00:01]}  Ke6 {[%clk 0:00:10]} 84. Rh6+ {[%clk 0:00:01]}  Ke7 {[%clk 0:00:10]} 85. Rf6 {[%clk 0:00:02]}  Rxh7+ {[%clk 0:00:10]} 86. Kg6 {[%clk 0:00:01]}  Rh6+ {[%clk 0:00:08]} 0-1


[Site "https://www.chess.com"]

[Event "Titled Tuesday Blitz April 19 Late 2022"]
[White "Timofeev, Artyom"]
[Black "Sernecki, Franciszek"]
[WhiteFideId "4140419"]
[BlackFideId "1169297"]
[WhiteElo "2594"]
[BlackElo "2165"]
[Result "1-0"]
[Round "08"]
[TimeControl "180+1"]
[Date "2022.04.19"]
[WhiteClock "0:01:10"]
[BlackClock "0:00:04"]

1. e4 {[%clk 0:03:00]}  c6 {[%clk 0:02:57]} 2. Nf3 {[%clk 0:03:00]}  d5 {[%clk 0:02:54]} 3. Nc3 {[%clk 0:03:00]}  Nf6 {[%clk 0:02:52]} 4. Qe2 {[%clk 0:02:58]}  d4 {[%clk 0:02:36]} 5. Nd1 {[%clk 0:02:57]}  c5 {[%clk 0:02:27]} 6. d3 {[%clk 0:02:55]}  Nc6 {[%clk 0:02:25]} 7. g3 {[%clk 0:02:56]}  e5 {[%clk 0:02:17]} 8. h4 {[%clk 0:02:51]}  Qa5+ {[%clk 0:02:00]} 9. Bd2 {[%clk 0:02:42]}  Nb4 {[%clk 0:01:59]} 10. Bxb4 {[%clk 0:02:40]}  cxb4 {[%clk 0:01:50]} 11. Nd2 {[%clk 0:02:33]}  Qc7 {[%clk 0:01:31]} 12. Rc1 {[%clk 0:02:29]}  Be7 {[%clk 0:01:01]} 13. Bh3 {[%clk 0:02:28]}  O-O {[%clk 0:01:00]} 14. Kf1 {[%clk 0:02:24]}  a5 {[%clk 0:00:56]} 15. Kg2 {[%clk 0:02:23]}  b5 {[%clk 0:00:48]} 16. f3 {[%clk 0:02:09]}  Bb7 {[%clk 0:00:46]} 17. Nf2 {[%clk 0:02:07]}  Ne8 {[%clk 0:00:44]} 18. Ng4 {[%clk 0:01:59]}  Kh8 {[%clk 0:00:41]} 19. Rhf1 {[%clk 0:01:58]}  f6 {[%clk 0:00:37]} 20. f4 {[%clk 0:01:55]}  exf4 {[%clk 0:00:36]} 21. gxf4 {[%clk 0:01:54]}  f5 {[%clk 0:00:36]} 22. Ne5 {[%clk 0:01:53]}  fxe4 {[%clk 0:00:34]} 23. Nxe4 {[%clk 0:01:48]}  Bxh4 {[%clk 0:00:33]} 24. Qh5 {[%clk 0:01:47]}  Be7 {[%clk 0:00:12]} 25. Ng6+ {[%clk 0:01:44]}  Kg8 {[%clk 0:00:13]} 26. Be6+ {[%clk 0:01:44]}  Rf7 {[%clk 0:00:12]} 27. Ne5 {[%clk 0:01:41]}  Nd6 {[%clk 0:00:09]} 28. Bxf7+ {[%clk 0:01:37]}  Kf8 {[%clk 0:00:09]} 29. Qxh7 {[%clk 0:01:33]}  Nxf7 {[%clk 0:00:09]} 30. Ng6+ {[%clk 0:01:33]}  Ke8 {[%clk 0:00:09]} 31. Qg8+ {[%clk 0:01:33]}  Kd7 {[%clk 0:00:09]} 32. Qxf7 {[%clk 0:01:33]}  Re8 {[%clk 0:00:08]} 33. Qf5+ {[%clk 0:01:31]}  Kd8 {[%clk 0:00:09]} 34. Ne5 {[%clk 0:01:27]}  Bf6 {[%clk 0:00:08]} 35. Rf2 {[%clk 0:01:15]}  b3 {[%clk 0:00:04]} 36. axb3 {[%clk 0:01:14]}  a4 {[%clk 0:00:04]} 37. bxa4 {[%clk 0:01:14]}  bxa4 {[%clk 0:00:05]} 38. Re1 {[%clk 0:01:14]}  a3 {[%clk 0:00:04]} 39. bxa3 {[%clk 0:01:13]}  Rg8 {[%clk 0:00:04]} 40. Qe6 {[%clk 0:01:10]}  Re8 {[%clk 0:00:04]} 41. Nf7+ {[%clk 0:01:10]}  Qxf7 {[%clk 0:00:04]} 42. Qxf7 {[%clk 0:01:10]} 1-0


[Site "https://www.chess.com"]

[Event "Titled Tuesday Blitz April 19 Late 2022"]
[White "Urazayev, Arystanbek"]
[Black "Potapova, Margarita"]
[WhiteFideId "13709810"]
[BlackFideId "14126869"]
[WhiteElo "2422"]
[BlackElo "2216"]
[Result "1-0"]
[Round "08"]
[TimeControl "180+1"]
[Date "2022.04.19"]
[WhiteClock "0:01:04"]
[BlackClock "0:00:32"]

1. d4 {[%clk 0:03:00]}  Nf6 {[%clk 0:02:54]} 2. c4 {[%clk 0:03:01]}  e6 {[%clk 0:02:52]} 3. Nc3 {[%clk 0:03:01]}  Bb4 {[%clk 0:02:52]} 4. Nf3 {[%clk 0:03:01]}  O-O {[%clk 0:02:52]} 5. Bg5 {[%clk 0:03:01]}  d5 {[%clk 0:02:49]} 6. e3 {[%clk 0:02:59]}  h6 {[%clk 0:02:47]} 7. Bh4 {[%clk 0:02:57]}  c5 {[%clk 0:02:14]} 8. cxd5 {[%clk 0:02:57]}  exd5 {[%clk 0:02:13]} 9. dxc5 {[%clk 0:02:58]}  g5 {[%clk 0:02:09]} 10. Bg3 {[%clk 0:02:55]}  Be6 {[%clk 0:02:09]} 11. Rc1 {[%clk 0:02:50]}  Nbd7 {[%clk 0:02:09]} 12. Be2 {[%clk 0:02:37]}  Nxc5 {[%clk 0:02:06]} 13. O-O {[%clk 0:02:34]}  Nce4 {[%clk 0:02:06]} 14. Nxe4 {[%clk 0:02:18]}  Nxe4 {[%clk 0:01:55]} 15. Be5 {[%clk 0:02:13]}  Be7 {[%clk 0:01:22]} 16. Nd4 {[%clk 0:02:09]}  Bd7 {[%clk 0:01:18]} 17. Bg4 {[%clk 0:01:47]}  f5 {[%clk 0:00:55]} 18. Qb3 {[%clk 0:01:36]}  Bc8 {[%clk 0:00:42]} 19. Rxc8 {[%clk 0:01:24]}  Rxc8 {[%clk 0:00:36]} 20. Bxf5 {[%clk 0:01:24]}  Nd2 {[%clk 0:00:36]} 21. Be6+ {[%clk 0:01:16]}  Kh7 {[%clk 0:00:35]} 22. Qd3+ {[%clk 0:01:12]}  Ne4 {[%clk 0:00:35]} 23. Bxc8 {[%clk 0:01:03]}  Qxc8 {[%clk 0:00:32]} 24. f3 {[%clk 0:01:04]} 1-0


[Site "https://www.chess.com"]

[Event "Titled Tuesday Blitz April 19 Late 2022"]
[White "Urbina Perez, Juan Antonio"]
[Black "Dilmukhametov, Artur"]
[WhiteFideId "2217368"]
[BlackFideId "24179922"]
[WhiteElo "2192"]
[BlackElo "2244"]
[Result "0-1"]
[Round "08"]
[TimeControl "180+1"]
[Date "2022.04.19"]
[WhiteClock "0:00:05"]
[BlackClock "0:00:23"]

1. e4 {[%clk 0:03:00]}  e6 {[%clk 0:02:59]} 2. d4 {[%clk 0:02:59]}  d5 {[%clk 0:03:00]} 3. exd5 {[%clk 0:03:00]}  exd5 {[%clk 0:03:00]} 4. Bd3 {[%clk 0:03:00]}  Bd6 {[%clk 0:03:00]} 5. Nf3 {[%clk 0:03:01]}  Nf6 {[%clk 0:03:00]} 6. O-O {[%clk 0:03:02]}  O-O {[%clk 0:03:01]} 7. Bg5 {[%clk 0:03:01]}  Bg4 {[%clk 0:03:01]} 8. Nbd2 {[%clk 0:02:58]}  c6 {[%clk 0:03:00]} 9. c3 {[%clk 0:02:57]}  Nbd7 {[%clk 0:03:00]} 10. Bh4 {[%clk 0:02:57]}  Re8 {[%clk 0:03:00]} 11. Bg3 {[%clk 0:02:57]}  Bxg3 {[%clk 0:02:59]} 12. hxg3 {[%clk 0:02:56]}  Qb6 {[%clk 0:03:00]} 13. Qb3 {[%clk 0:02:55]}  a5 {[%clk 0:02:56]} 14. Qxb6 {[%clk 0:02:52]}  Nxb6 {[%clk 0:02:57]} 15. Ne5 {[%clk 0:02:51]}  Be6 {[%clk 0:02:56]} 16. Rfe1 {[%clk 0:02:49]}  a4 {[%clk 0:02:56]} 17. a3 {[%clk 0:02:49]}  Nfd7 {[%clk 0:02:54]} 18. Ndf3 {[%clk 0:02:45]}  f6 {[%clk 0:02:54]} 19. Nxd7 {[%clk 0:02:45]}  Nxd7 {[%clk 0:02:54]} 20. Re3 {[%clk 0:02:41]}  Bf7 {[%clk 0:02:53]} 21. Rae1 {[%clk 0:02:40]}  Kf8 {[%clk 0:02:54]} 22. Nh4 {[%clk 0:02:01]}  Rxe3 {[%clk 0:02:51]} 23. Rxe3 {[%clk 0:02:02]}  g6 {[%clk 0:02:50]} 24. Bc2 {[%clk 0:01:59]}  b5 {[%clk 0:02:43]} 25. Nf3 {[%clk 0:01:56]}  Nb6 {[%clk 0:02:44]} 26. Bd3 {[%clk 0:01:55]}  Nc8 {[%clk 0:02:44]} 27. Kf1 {[%clk 0:01:54]}  Nd6 {[%clk 0:02:44]} 28. Ne1 {[%clk 0:01:51]}  Be8 {[%clk 0:02:39]} 29. Nc2 {[%clk 0:01:50]}  Bd7 {[%clk 0:02:39]} 30. Nb4 {[%clk 0:01:48]}  Kf7 {[%clk 0:02:37]} 31. f3 {[%clk 0:01:47]}  h5 {[%clk 0:02:36]} 32. Ke1 {[%clk 0:01:41]}  Rh8 {[%clk 0:02:33]} 33. Kf2 {[%clk 0:01:39]}  h4 {[%clk 0:02:33]} 34. gxh4 {[%clk 0:01:38]}  Rxh4 {[%clk 0:02:33]} 35. Na6 {[%clk 0:01:37]}  Rh1 {[%clk 0:02:28]} 36. Re1 {[%clk 0:01:35]}  Rxe1 {[%clk 0:02:23]} 37. Kxe1 {[%clk 0:01:36]}  Bf5 {[%clk 0:02:12]} 38. Bf1 {[%clk 0:01:35]}  Ke7 {[%clk 0:02:10]} 39. Nc5 {[%clk 0:01:34]}  g5 {[%clk 0:02:06]} 40. g4 {[%clk 0:01:31]}  Bg6 {[%clk 0:02:05]} 41. Kd2 {[%clk 0:01:31]}  Kf7 {[%clk 0:01:58]} 42. Be2 {[%clk 0:01:29]}  f5 {[%clk 0:01:58]} 43. gxf5 {[%clk 0:01:28]}  Bxf5 {[%clk 0:01:58]} 44. Ke3 {[%clk 0:01:26]}  Kg6 {[%clk 0:01:53]} 45. Na6 {[%clk 0:01:18]}  Nc8 {[%clk 0:01:41]} 46. Nc7 {[%clk 0:01:04]}  Ne7 {[%clk 0:01:38]} 47. Nxb5 {[%clk 0:01:03]}  cxb5 {[%clk 0:01:38]} 48. Bxb5 {[%clk 0:01:04]}  Bc2 {[%clk 0:01:37]} 49. Be8+ {[%clk 0:00:47]}  Kf6 {[%clk 0:01:34]} 50. Bd7 {[%clk 0:00:46]}  Bb3 {[%clk 0:01:31]} 51. Kf2 {[%clk 0:00:44]}  Ng6 {[%clk 0:01:31]} 52. Ke3 {[%clk 0:00:41]}  Nf4 {[%clk 0:01:31]} 53. Bc6 {[%clk 0:00:36]}  Ke7 {[%clk 0:01:23]} 54. Bb5 {[%clk 0:00:34]}  Ne6 {[%clk 0:01:12]} 55. Bc6 {[%clk 0:00:26]}  Nd8 {[%clk 0:01:12]} 56. Bb5 {[%clk 0:00:26]}  Nf7 {[%clk 0:01:12]} 57. f4 {[%clk 0:00:21]}  g4 {[%clk 0:01:10]} 58. Kf2 {[%clk 0:00:22]}  Kf6 {[%clk 0:01:08]} 59. Kg3 {[%clk 0:00:22]}  Nh6 {[%clk 0:01:07]} 60. Bd7 {[%clk 0:00:21]}  Bd1 {[%clk 0:01:06]} 61. Bc6 {[%clk 0:00:19]}  Nf5+ {[%clk 0:01:06]} 62. Kf2 {[%clk 0:00:17]}  g3+ {[%clk 0:00:58]} 63. Kg2 {[%clk 0:00:17]}  Kg6 {[%clk 0:00:59]} 64. Bd7 {[%clk 0:00:16]}  Ne3+ {[%clk 0:00:47]} 65. Kxg3 {[%clk 0:00:16]}  Nc4 {[%clk 0:00:47]} 66. Be6 {[%clk 0:00:14]}  Nb6 {[%clk 0:00:34]} 67. f5+ {[%clk 0:00:12]}  Kg5 {[%clk 0:00:34]} 68. Kf2 {[%clk 0:00:09]}  Bg4 {[%clk 0:00:34]} 69. Ke1 {[%clk 0:00:08]}  Bxf5 {[%clk 0:00:32]} 70. Bf7 {[%clk 0:00:08]}  Kf4 {[%clk 0:00:31]} 71. Kd2 {[%clk 0:00:08]}  Nc4+ {[%clk 0:00:30]} 72. Kc1 {[%clk 0:00:08]}  Be4 {[%clk 0:00:28]} 73. Be8 {[%clk 0:00:09]}  Nb6 {[%clk 0:00:28]} 74. Bc6 {[%clk 0:00:09]}  Ke3 {[%clk 0:00:28]} 75. Kd1 {[%clk 0:00:08]}  Kd3 {[%clk 0:00:26]} 76. Kc1 {[%clk 0:00:09]}  Kc4 {[%clk 0:00:22]} 77. Be8 {[%clk 0:00:08]}  Kb3 {[%clk 0:00:23]} 78. Bc6 {[%clk 0:00:07]}  Nc4 {[%clk 0:00:23]} 79. Be8 {[%clk 0:00:05]}  Nxb2 {[%clk 0:00:23]} 80. Bxa4+ {[%clk 0:00:04]}  Nxa4 {[%clk 0:00:23]} 81. Kd2 {[%clk 0:00:05]}  Nxc3 {[%clk 0:00:21]} 82. a4 {[%clk 0:00:04]}  Nxa4 {[%clk 0:00:22]} 83. Ke3 {[%clk 0:00:05]}  Kc3 {[%clk 0:00:23]} 84. Kf4 {[%clk 0:00:05]}  Kxd4 {[%clk 0:00:23]} 0-1


[Site "https://www.chess.com"]

[Event "Titled Tuesday Blitz April 19 Late 2022"]
[White "Wagner, Dennis"]
[Black "Barria Zuniga, Daniel"]
[WhiteFideId "24650684"]
[BlackFideId "3400816"]
[WhiteElo "2355"]
[BlackElo "2414"]
[Result "1-0"]
[Round "08"]
[TimeControl "180+1"]
[Date "2022.04.19"]
[WhiteClock "0:00:16"]
[BlackClock "0:00:08"]

1. Nf3 {[%clk 0:03:00]}  Nf6 {[%clk 0:02:51]} 2. g3 {[%clk 0:02:59]}  d6 {[%clk 0:02:49]} 3. d4 {[%clk 0:02:56]}  g6 {[%clk 0:02:47]} 4. Bg2 {[%clk 0:02:55]}  Bg7 {[%clk 0:02:47]} 5. O-O {[%clk 0:02:52]}  O-O {[%clk 0:02:48]} 6. Nc3 {[%clk 0:02:46]}  c6 {[%clk 0:02:25]} 7. e4 {[%clk 0:02:43]}  Bg4 {[%clk 0:02:25]} 8. h3 {[%clk 0:02:39]}  Bxf3 {[%clk 0:02:24]} 9. Qxf3 {[%clk 0:02:40]}  Nfd7 {[%clk 0:02:13]} 10. Rd1 {[%clk 0:02:40]}  Qb6 {[%clk 0:01:53]} 11. Ne2 {[%clk 0:02:34]}  c5 {[%clk 0:01:50]} 12. d5 {[%clk 0:02:17]}  Qa6 {[%clk 0:01:40]} 13. Bf1 {[%clk 0:02:13]}  Qa4 {[%clk 0:01:23]} 14. Nc3 {[%clk 0:01:50]}  Bxc3 {[%clk 0:01:20]} 15. Qxc3 {[%clk 0:01:48]}  b5 {[%clk 0:01:16]} 16. Bh6 {[%clk 0:01:43]}  f6 {[%clk 0:01:14]} 17. Bxf8 {[%clk 0:01:42]}  Kxf8 {[%clk 0:01:15]} 18. Qb3 {[%clk 0:01:30]}  Qxe4 {[%clk 0:01:06]} 19. Re1 {[%clk 0:01:30]}  Qb4 {[%clk 0:01:06]} 20. Bxb5 {[%clk 0:01:22]}  Ne5 {[%clk 0:01:03]} 21. Qxb4 {[%clk 0:01:20]}  Nf3+ {[%clk 0:00:49]} 22. Kf1 {[%clk 0:01:19]}  cxb4 {[%clk 0:00:46]} 23. Re3 {[%clk 0:01:12]}  Nd4 {[%clk 0:00:45]} 24. Ba4 {[%clk 0:01:10]}  Na6 {[%clk 0:00:38]} 25. Rd1 {[%clk 0:01:08]}  Nf5 {[%clk 0:00:38]} 26. Re4 {[%clk 0:01:03]}  Rb8 {[%clk 0:00:36]} 27. Bc6 {[%clk 0:00:56]}  Nc5 {[%clk 0:00:35]} 28. Rc4 {[%clk 0:00:57]}  a5 {[%clk 0:00:35]} 29. h4 {[%clk 0:00:53]}  h5 {[%clk 0:00:33]} 30. Ke2 {[%clk 0:00:52]}  Nh6 {[%clk 0:00:32]} 31. Ra1 {[%clk 0:00:51]}  Ng4 {[%clk 0:00:30]} 32. f4 {[%clk 0:00:51]}  f5 {[%clk 0:00:27]} 33. Rd4 {[%clk 0:00:37]}  Nf6 {[%clk 0:00:26]} 34. Kf3 {[%clk 0:00:33]}  Rb6 {[%clk 0:00:26]} 35. b3 {[%clk 0:00:33]}  e5 {[%clk 0:00:25]} 36. fxe5 {[%clk 0:00:31]}  dxe5 {[%clk 0:00:26]} 37. Rc4 {[%clk 0:00:32]}  Nce4 {[%clk 0:00:22]} 38. Rd1 {[%clk 0:00:23]}  Ke7 {[%clk 0:00:21]} 39. Ba4 {[%clk 0:00:22]}  Nd6 {[%clk 0:00:14]} 40. Rc7+ {[%clk 0:00:20]}  Kd8 {[%clk 0:00:13]} 41. Rc6 {[%clk 0:00:20]}  Rxc6 {[%clk 0:00:13]} 42. dxc6 {[%clk 0:00:20]}  Kc7 {[%clk 0:00:13]} 43. Ke3 {[%clk 0:00:17]}  Nfe4 {[%clk 0:00:13]} 44. Rd5 {[%clk 0:00:16]}  Nc3 {[%clk 0:00:11]} 45. Rxe5 {[%clk 0:00:14]}  Nxa4 {[%clk 0:00:11]} 46. Re7+ {[%clk 0:00:14]}  Kxc6 {[%clk 0:00:11]} 47. bxa4 {[%clk 0:00:15]}  Kd5 {[%clk 0:00:06]} 48. Ra7 {[%clk 0:00:14]}  Nc4+ {[%clk 0:00:06]} 49. Kf4 {[%clk 0:00:15]}  Kd4 {[%clk 0:00:06]} 50. Kg5 {[%clk 0:00:14]}  Kc3 {[%clk 0:00:06]} 51. Kxg6 {[%clk 0:00:15]}  Kxc2 {[%clk 0:00:07]} 52. Kxh5 {[%clk 0:00:15]}  Kb2 {[%clk 0:00:08]} 53. Kg5 {[%clk 0:00:15]}  Kxa2 {[%clk 0:00:08]} 54. h5 {[%clk 0:00:16]}  b3 {[%clk 0:00:08]} 55. h6 {[%clk 0:00:16]}  b2 {[%clk 0:00:08]} 56. Rb7 {[%clk 0:00:16]}  b1=Q {[%clk 0:00:06]} 57. Rxb1 {[%clk 0:00:16]}  Kxb1 {[%clk 0:00:07]} 58. h7 {[%clk 0:00:16]}  Nd6 {[%clk 0:00:08]} 59. Kf6 {[%clk 0:00:16]} 1-0


[Site "https://www.chess.com"]

[Event "Titled Tuesday Blitz April 19 Late 2022"]
[White "Yang, Cayden"]
[Black "Baker, Chris W"]
[WhiteFideId "30967260"]
[BlackFideId "401676"]
[WhiteElo "2474"]
[BlackElo "2233"]
[Result "1/2-1/2"]
[Round "08"]
[TimeControl "180+1"]
[Date "2022.04.19"]
[WhiteClock "0:00:38"]
[BlackClock "0:01:24"]

1. e4 {[%clk 0:02:35]}  e5 {[%clk 0:02:59]} 2. Nf3 {[%clk 0:02:35]}  Nc6 {[%clk 0:02:59]} 3. Bb5 {[%clk 0:02:36]}  a6 {[%clk 0:02:58]} 4. Ba4 {[%clk 0:02:34]}  Nf6 {[%clk 0:02:58]} 5. O-O {[%clk 0:02:32]}  Be7 {[%clk 0:02:58]} 6. Re1 {[%clk 0:02:29]}  b5 {[%clk 0:02:58]} 7. Bb3 {[%clk 0:02:30]}  O-O {[%clk 0:02:59]} 8. h3 {[%clk 0:02:29]}  d6 {[%clk 0:02:55]} 9. c3 {[%clk 0:02:28]}  Na5 {[%clk 0:02:54]} 10. Bc2 {[%clk 0:02:28]}  c5 {[%clk 0:02:55]} 11. d4 {[%clk 0:02:28]}  Qc7 {[%clk 0:02:54]} 12. Nbd2 {[%clk 0:02:27]}  Bd7 {[%clk 0:02:51]} 13. Nf1 {[%clk 0:02:26]}  cxd4 {[%clk 0:02:48]} 14. cxd4 {[%clk 0:02:27]}  Rac8 {[%clk 0:02:43]} 15. Bb1 {[%clk 0:02:25]}  Rfe8 {[%clk 0:02:38]} 16. Ng3 {[%clk 0:01:50]}  h6 {[%clk 0:02:32]} 17. b3 {[%clk 0:01:43]}  Nc6 {[%clk 0:02:23]} 18. Be3 {[%clk 0:01:36]}  Bf8 {[%clk 0:02:19]} 19. Qd2 {[%clk 0:01:17]}  Qa5 {[%clk 0:02:02]} 20. Qxa5 {[%clk 0:01:12]}  Nxa5 {[%clk 0:02:02]} 21. Bd3 {[%clk 0:01:13]}  Rc3 {[%clk 0:01:32]} 22. Bf1 {[%clk 0:00:53]}  Rc2 {[%clk 0:01:25]} 23. Bd3 {[%clk 0:00:52]}  Rc3 {[%clk 0:01:24]} 24. Bf1 {[%clk 0:00:45]}  Rc2 {[%clk 0:01:24]} 25. Bd3 {[%clk 0:00:38]}  Rc3 {[%clk 0:01:24]} 1/2-1/2


[Site "https://www.chess.com"]

[Event "Titled Tuesday Blitz April 19 Late 2022"]
[White "Zhao, Jun"]
[Black "Herrera Reyes, Jose Antonio"]
[WhiteFideId "8602522"]
[BlackFideId "2274914"]
[WhiteElo "2547"]
[BlackElo "2361"]
[Result "1-0"]
[Round "08"]
[TimeControl "180+1"]
[Date "2022.04.19"]
[WhiteClock "0:00:49"]
[BlackClock "0:00:02"]

1. d4 {[%clk 0:02:56]}  Nf6 {[%clk 0:02:59]} 2. Bf4 {[%clk 0:02:55]}  d5 {[%clk 0:02:58]} 3. e3 {[%clk 0:02:54]}  c5 {[%clk 0:02:51]} 4. Nf3 {[%clk 0:02:52]}  Nbd7 {[%clk 0:02:50]} 5. Nbd2 {[%clk 0:02:48]}  g6 {[%clk 0:02:46]} 6. c3 {[%clk 0:02:45]}  Bg7 {[%clk 0:02:46]} 7. h3 {[%clk 0:02:46]}  O-O {[%clk 0:02:46]} 8. Be2 {[%clk 0:02:45]}  a6 {[%clk 0:02:45]} 9. O-O {[%clk 0:02:46]}  b5 {[%clk 0:02:44]} 10. a4 {[%clk 0:02:45]}  b4 {[%clk 0:02:41]} 11. cxb4 {[%clk 0:02:45]}  cxb4 {[%clk 0:02:42]} 12. a5 {[%clk 0:02:38]}  Ne4 {[%clk 0:02:38]} 13. Nb3 {[%clk 0:02:36]}  Re8 {[%clk 0:02:25]} 14. Rc1 {[%clk 0:02:34]}  Nf8 {[%clk 0:02:23]} 15. Bc7 {[%clk 0:02:25]}  Qd7 {[%clk 0:02:22]} 16. Ne5 {[%clk 0:02:25]}  Qf5 {[%clk 0:02:07]} 17. Bg4 {[%clk 0:02:03]}  Qf6 {[%clk 0:02:03]} 18. Rc6 {[%clk 0:01:57]}  Ne6 {[%clk 0:01:30]} 19. Nf3 {[%clk 0:01:39]}  Bd7 {[%clk 0:01:28]} 20. Be5 {[%clk 0:01:32]}  Bxc6 {[%clk 0:01:18]} 21. Bxf6 {[%clk 0:01:32]}  exf6 {[%clk 0:01:18]} 22. Bxe6 {[%clk 0:01:32]}  fxe6 {[%clk 0:01:19]} 23. Nfd2 {[%clk 0:01:29]}  Nd6 {[%clk 0:01:17]} 24. Nc5 {[%clk 0:01:29]}  Bb5 {[%clk 0:01:17]} 25. Re1 {[%clk 0:01:28]}  e5 {[%clk 0:01:18]} 26. dxe5 {[%clk 0:01:23]}  fxe5 {[%clk 0:01:18]} 27. Nf3 {[%clk 0:01:23]}  Bc6 {[%clk 0:00:46]} 28. Ng5 {[%clk 0:01:23]}  Nc4 {[%clk 0:00:28]} 29. Nge6 {[%clk 0:01:14]}  Bf6 {[%clk 0:00:26]} 30. Nc7 {[%clk 0:01:13]}  Nxa5 {[%clk 0:00:23]} 31. Nxa8 {[%clk 0:01:02]}  Rxa8 {[%clk 0:00:24]} 32. e4 {[%clk 0:00:57]}  d4 {[%clk 0:00:23]} 33. Qa1 {[%clk 0:00:56]}  Bd8 {[%clk 0:00:20]} 34. Qa2+ {[%clk 0:00:56]}  b3 {[%clk 0:00:20]} 35. Nxb3 {[%clk 0:00:55]}  Nxb3 {[%clk 0:00:20]} 36. Qxb3+ {[%clk 0:00:56]}  Kg7 {[%clk 0:00:21]} 37. Qe6 {[%clk 0:00:56]}  Be8 {[%clk 0:00:20]} 38. Qxe8 {[%clk 0:00:55]}  Kh6 {[%clk 0:00:03]} 39. Qxe5 {[%clk 0:00:52]}  Bb6 {[%clk 0:00:03]} 40. Qd6 {[%clk 0:00:49]}  Ba7 {[%clk 0:00:02]} 41. e5 {[%clk 0:00:49]} 1-0


[Site "https://www.chess.com"]